bitfinex/quotes_BTCUSD_20241202
["timestamp","ask_amount","ask_price","bid_price","bid_amount"]
[1733159551636,0.10584521,96352.0,96339.0,0.028863]
[1733159551849,0.207598,96340.0,96339.0,0.02903986]
[1733159552061,0.31998853,96340.0,96339.0,0.02903986]
[1733159553027,0.00954532,96340.0,96339.0,0.02903986]
[1733159553246,0.001,96340.0,96339.0,0.02903986]
[1733159553457,0.001,96340.0,96339.0,0.05203986]
[1733159553673,0.001,96340.0,96339.0,0.13617679]
[1733159554104,0.207536,96369.0,96363.0,0.051863]
[1733159554105,0.0095579,96364.0,96363.0,0.051863]
[1733159554526,0.01529834,96368.0,96364.0,0.023]
[1733159554527,0.207539,96367.0,96364.0,0.023]
[1733159554740,0.0095579,96368.0,96367.0,0.051863]
[1733159554955,0.00956605,96372.0,96368.0,0.023]
[1733159555380,0.207531,96371.0,96368.0,0.023]
[1733159555585,0.207535,96369.0,96368.0,0.023]
[1733159555791,0.00956605,96369.0,96368.0,0.023]
[1733159555995,0.207535,96369.0,96368.0,0.023]
[1733159556200,0.00956605,96369.0,96368.0,0.023]
[1733159556393,0.00017686,96369.0,96368.0,0.026]
[1733159557465,0.00017686,96369.0,96368.0,0.029]
[1733159557667,0.00017686,96369.0,96368.0,0.026]
[1733159558570,0.00017686,96369.0,96368.0,0.03]
[1733159559012,0.00017686,96369.0,96368.0,0.058863]
[1733159566231,0.31055707,96369.0,96368.0,0.03]
[1733159566457,0.32015556,96369.0,96368.0,0.007]
[1733159566666,0.46055707,96369.0,96368.0,0.007]
[1733159567127,0.207585,96346.0,96345.0,0.028863]
[1733159567311,0.21718246,96346.0,96345.0,0.028863]
[1733159568522,0.32002767,96346.0,96345.0,0.032863]
[1733159569156,0.32002767,96346.0,96345.0,0.035863]
[1733159569571,0.32002767,96346.0,96345.0,0.032863]
[1733159569781,0.33747486,96346.0,96345.0,0.032863]
[1733159569986,0.21718246,96346.0,96345.0,0.057863]
[1733159571024,0.38499309,96346.0,96345.0,0.034863]
[1733159571232,0.33537278,96346.0,96345.0,0.028863]
[1733159571439,0.32002767,96346.0,96345.0,0.028863]
[1733159571654,0.32002767,96346.0,96345.0,0.030863]
[1733159572066,0.68161367,96346.0,96343.0,0.028863]
[1733159572272,0.207589,96344.0,96343.0,0.028863]
[1733159572479,0.32003167,96344.0,96343.0,0.028863]
[1733159573459,0.32001408,96344.0,96343.0,0.028863]
[1733159573895,0.207598,96340.0,96339.0,0.0008648]
[1733159574094,0.32002308,96340.0,96339.0,0.0297278]
[1733159575399,0.32002308,96340.0,96339.0,0.0008648]
[1733159575942,0.32002308,96340.0,96339.0,0.0297278]
[1733159575943,0.32102308,96340.0,96339.0,0.0297278]
[1733159576181,0.32102308,96340.0,96339.0,0.0008648]
[1733159576613,0.32102308,96340.0,96339.0,0.0297278]
[1733159577037,0.32102308,96340.0,96339.0,0.0008648]
[1733159577245,0.55850974,96340.0,96339.0,0.0008648]
[1733159577672,0.5738263,96340.0,96339.0,0.0008648]
[1733159578317,0.55850974,96340.0,96339.0,0.0008648]
[1733159578753,0.57382601,96340.0,96339.0,0.0008648]
[1733159578979,0.48633935,96340.0,96339.0,0.0008648]
[1733159579633,0.503555,96340.0,96339.0,0.0008648]
[1733159580066,0.207652,96315.0,96307.0,0.023]
[1733159580280,0.207644,96319.0,96310.0,0.023]
[1733159580497,0.207637,96322.0,96311.0,0.20766]
[1733159580708,0.415252,96327.0,96313.0,0.230656]
[1733159580917,0.12106086,96340.0,96323.0,0.207633]
[1733159581124,0.207613,96334.0,96323.0,0.207633]
[1733159581551,0.10284521,96339.0,96316.0,0.023]
[1733159581797,0.207633,96324.0,96316.0,0.023]
[1733159582057,0.10284521,96339.0,96318.0,0.023]
[1733159582264,0.00957526,96338.0,96318.0,0.023]
[1733159582467,0.00957526,96338.0,96318.0,0.230644]
[1733159582681,0.00957526,96338.0,96324.0,0.207632]
[1733159582892,0.0017296,96376.0,96347.0,0.2]
[1733159583169,0.0017296,96376.0,96353.0,0.023]
[1733159583372,0.0017296,96376.0,96367.0,0.207539]
[1733159583589,0.207471,96399.0,96367.0,0.207539]
[1733159583590,0.207435,96416.0,96384.0,0.2]
[1733159583802,0.0108137,96417.0,96411.0,0.207443]
[1733159583803,0.10284521,96415.0,96411.0,0.207443]
[1733159584002,0.00958298,96398.0,96397.0,0.22483592]
[1733159584229,0.01532515,96445.0,96406.0,0.0784]
[1733159584428,0.01532515,96445.0,96429.0,0.023]
[1733159584640,0.01532515,96445.0,96431.0,0.023]
[1733159584875,0.0005905,96445.0,96432.0,0.00183521]
[1733159585080,0.0005905,96445.0,96363.0,0.207547]
[1733159585081,0.0762,96440.0,96396.0,0.2]
[1733159585290,0.0762,96440.0,96408.0,0.7]
[1733159585291,0.10284521,96432.0,96408.0,0.7]
[1733159585498,0.10284521,96432.0,96396.0,0.2]
[1733159585718,0.10284521,96432.0,96388.0,0.0372]
[1733159585923,0.10284521,96432.0,96380.0,0.15]
[1733159585924,0.10284521,96432.0,96389.0,0.023]
[1733159586129,0.01028452,96431.0,96396.0,0.023]
[1733159586346,0.207429,96419.0,96402.0,0.207463]
[1733159586562,0.207429,96419.0,96397.0,0.00183584]
[1733159586563,0.207421,96422.0,96398.0,0.023]
[1733159586804,0.10284521,96421.0,96398.0,0.230471]
[1733159587223,0.207425,96420.0,96398.0,0.437943]
[1733159587406,0.10284521,96420.0,96398.0,0.207471]
[1733159587631,0.10284521,96420.0,96396.0,0.023]
[1733159587632,0.207449,96410.0,96396.0,0.023]
[1733159587850,0.207442,96413.0,96398.0,0.023]
[1733159588052,0.207452,96408.0,96398.0,0.023]
[1733159588259,0.207452,96408.0,96396.0,0.023]
[1733159588469,0.20743,96418.0,96397.0,0.207475]
[1733159588674,0.207427,96419.0,96396.0,0.023]
[1733159588881,0.41544514,96419.0,96399.0,0.207471]
[1733159589074,0.41544514,96419.0,96400.0,0.023]
[1733159589493,0.20744,96414.0,96400.0,0.023]
[1733159590145,0.20746,96404.0,96398.0,0.003]
[1733159590351,0.10284521,96413.0,96398.0,0.003]
[1733159590572,0.00059014,96419.0,96403.0,0.18617245]
[1733159590573,0.001,96408.0,96403.0,0.18617245]
[1733159590794,0.00059014,96419.0,96414.0,0.223]
[1733159591018,0.00059014,96419.0,96405.0,0.023]
[1733159591230,0.10343535,96419.0,96400.0,0.002]
[1733159591461,0.20743,96418.0,96401.0,0.023]
[1733159591672,0.001,96413.0,96399.0,0.023]
[1733159591897,0.11377888,96419.0,96399.0,0.023]
[1733159591898,0.11477888,96419.0,96399.0,0.023]
[1733159592101,0.11477888,96419.0,96391.0,0.023]
[1733159592102,0.207464,96403.0,96391.0,0.023]
[1733159592324,0.02957068,96419.0,96391.0,0.023]
[1733159592325,0.01922715,96419.0,96405.0,0.002]
[1733159592538,0.01922715,96419.0,96406.0,0.023]
[1733159592539,0.00159014,96419.0,96406.0,0.023]
[1733159592717,0.00159014,96419.0,96412.0,0.023]
[1733159592941,0.00159014,96419.0,96405.0,0.002]
[1733159593295,0.20743,96418.0,96405.0,0.002]
[1733159593651,0.20744,96414.0,96405.0,0.002]
[1733159593862,0.20744,96414.0,96396.0,0.2]
[1733159593863,0.207433,96417.0,96400.0,0.207468]
[1733159594061,0.207433,96417.0,96401.0,0.023]
[1733159594176,0.00159014,96419.0,96401.0,0.023]
[1733159594431,0.207442,96413.0,96396.0,0.023]
[1733159594598,0.02098761,96418.0,96378.0,0.2]
[1733159594599,0.10284521,96412.0,96378.0,0.2]
[1733159594802,0.46030021,96406.0,96405.0,0.003]
[1733159595009,0.46030021,96406.0,96351.0,0.2492]
[1733159595010,0.207534,96370.0,96355.0,0.207565]
[1733159595222,0.15,96405.0,96355.0,0.207565]
[1733159595423,0.683464,96402.0,96401.0,0.001]
[1733159595649,0.683464,96402.0,96379.0,0.0009992]
[1733159595650,0.207511,96380.0,96379.0,0.0009992]
[1733159595857,0.207516,96378.0,96348.0,0.285779]
[1733159596074,0.15,96376.0,96340.0,0.407596]
[1733159596283,0.207566,96355.0,96344.0,0.207587]
[1733159596508,0.10284521,96375.0,96340.0,0.407596]
[1733159596509,0.207565,96356.0,96340.0,0.407596]
[1733159596720,0.207556,96360.0,96344.0,0.207587]
[1733159596970,0.207549,96363.0,96348.0,0.20758]
[1733159597141,0.207535,96370.0,96344.0,0.207587]
[1733159597142,0.001,96370.0,96355.0,0.009]
[1733159597339,0.001,96370.0,96356.0,0.207563]
[1733159597340,0.207537,96368.0,96356.0,0.207563]
[1733159597567,0.207537,96368.0,96355.0,0.009]
[1733159597771,0.207537,96368.0,96346.0,0.207585]
[1733159597772,0.207537,96368.0,96354.0,0.207567]
[1733159597939,0.207549,96363.0,96348.0,0.20758]
[1733159598163,0.208549,96363.0,96348.0,0.20758]
[1733159598402,0.208549,96363.0,96344.0,0.201]
[1733159598403,0.207535,96369.0,96356.0,0.207562]
[1733159598612,0.207544,96365.0,96349.0,0.02483679]
[1733159598823,0.207544,96365.0,96345.0,0.2]
[1733159598824,0.207544,96365.0,96355.0,0.001]
[1733159599250,0.41500999,96365.0,96355.0,0.001]
[1733159599504,0.207553,96361.0,96355.0,0.001]
[1733159599708,0.207555,96360.0,96355.0,0.001]
[1733159599916,0.415111,96360.0,96355.0,0.001]
[1733159600119,0.207568,96354.0,96343.0,0.023]
[1733159600547,0.207568,96354.0,96348.0,0.0009967]
[1733159601035,0.20756,96358.0,96348.0,0.0009967]
[1733159601278,0.207524,96374.0,96348.0,0.0009967]
[1733159601477,0.207561,96358.0,96343.0,0.003]
[1733159601680,0.207561,96358.0,96344.0,0.023]
[1733159601883,0.10284521,96373.0,96342.0,0.023]
[1733159601884,0.207572,96352.0,96342.0,0.023]
[1733159602126,0.207572,96352.0,96348.0,0.002]
[1733159602335,0.41477458,96352.0,96348.0,0.002]
[1733159602538,0.207576,96350.0,96348.0,0.002]
[1733159602747,0.25284521,96349.0,96348.0,0.002]
[1733159603556,0.25284521,96349.0,96348.0,0.005]
[1733159603784,0.25284521,96349.0,96348.0,0.002]
[1733159604000,0.207598,96340.0,96316.0,0.207647]
[1733159604205,0.31044321,96340.0,96313.0,0.207655]
[1733159605455,0.31044321,96340.0,96317.0,0.207646]
[1733159605654,0.31044321,96340.0,96331.0,0.0009984]
[1733159606066,0.31044321,96340.0,96339.0,0.00573]
[1733159606484,0.46144321,96340.0,96339.0,0.01173]
[1733159607376,0.46144321,96340.0,96339.0,0.00773]
[1733159607722,0.31044321,96340.0,96339.0,0.00273]
[1733159608222,0.31044321,96340.0,96339.0,0.00373]
[1733159608472,0.0831,96367.0,96339.0,0.00373]
[1733159608703,0.00017683,96363.0,96340.0,0.230597]
[1733159608939,0.00017683,96363.0,96340.0,0.02483706]
[1733159609136,0.20755,96362.0,96341.0,0.207595]
[1733159609429,0.00017683,96363.0,96342.0,0.023]
[1733159609430,0.207577,96350.0,96342.0,0.023]
[1733159609602,0.207575,96351.0,96340.0,0.023]
[1733159609802,0.002,96340.0,96339.0,0.00173]
[1733159610032,0.002,96340.0,96339.0,0.02473]
[1733159610244,0.00017683,96363.0,96345.0,0.207585]
[1733159610453,0.00017683,96363.0,96339.0,0.00356698]
[1733159610454,0.207564,96356.0,96342.0,0.230593]
[1733159610662,0.207588,96345.0,96342.0,0.023]
[1733159610874,0.207589,96344.0,96340.0,0.023]
[1733159611081,0.207575,96351.0,96340.0,0.023]
[1733159611289,0.207575,96351.0,96340.0,0.230598]
[1733159611495,0.00017683,96363.0,96344.0,0.023]
[1733159611701,0.00017683,96363.0,96343.0,0.2]
[1733159611702,0.00017683,96363.0,96346.0,0.023]
[1733159611901,0.207555,96360.0,96346.0,0.023]
[1733159612104,0.207555,96360.0,96348.0,0.023]
[1733159612314,0.00017683,96363.0,96348.0,0.023]
[1733159612521,0.00017683,96363.0,96350.0,0.023]
[1733159612943,0.00017683,96363.0,96348.0,0.023]
[1733159613149,0.00017683,96363.0,96346.0,0.023]
[1733159613351,0.207551,96362.0,96349.0,0.207576]
[1733159613642,0.207552,96361.0,96350.0,0.023]
[1733159613850,0.00017683,96363.0,96341.0,0.023]
[1733159614086,0.207569,96354.0,96343.0,0.023]
[1733159614286,0.00017683,96363.0,96346.0,0.002]
[1733159614521,0.20757,96353.0,96347.0,0.023]
[1733159614743,0.20757,96353.0,96349.0,0.003]
[1733159614978,0.01092484,96352.0,96349.0,0.003]
[1733159615180,0.207574,96351.0,96349.0,0.003]
[1733159615593,0.207576,96350.0,96349.0,0.003]
[1733159615805,0.207594,96342.0,96338.0,0.0009894]
[1733159616011,0.00017683,96363.0,96338.0,0.0009894]
[1733159616218,0.15,96361.0,96332.0,0.207613]
[1733159616429,0.207593,96343.0,96328.0,0.00183713]
[1733159616576,0.207593,96343.0,96323.0,0.0817]
[1733159616577,0.207593,96343.0,96326.0,0.00183715]
[1733159617013,0.415186,96343.0,96327.0,0.207625]
[1733159617255,0.415186,96343.0,96323.0,0.2817]
[1733159617256,0.415186,96343.0,96323.0,0.0817]
[1733159617459,0.415186,96343.0,96320.0,0.20764]
[1733159617778,0.41215,96343.0,96339.0,0.00673]
[1733159619195,0.207595,96341.0,96339.0,0.01473]
[1733159619326,0.31044021,96341.0,96339.0,0.01473]
[1733159620380,0.31044021,96341.0,96339.0,0.00173]
[1733159620587,0.31244021,96341.0,96339.0,0.00173]
[1733159621868,0.209595,96341.0,96339.0,0.00173]
[1733159623424,0.210595,96341.0,96339.0,0.00173]
[1733159623950,0.003,96341.0,96339.0,0.00173]
[1733159626945,0.208597,96341.0,96339.0,0.00573]
[1733159627148,0.207597,96341.0,96339.0,0.00573]
[1733159627565,0.207597,96341.0,96339.0,0.00873]
[1733159627781,0.00959325,96340.0,96339.0,0.00873]
[1733159627989,0.00959325,96340.0,96339.0,0.00573]
[1733159628636,0.00959325,96340.0,96339.0,0.00173]
[1733159630974,0.01132345,96343.0,96339.0,0.00173]
[1733159631190,0.207598,96341.0,96339.0,0.00173]
[1733159631397,0.00959325,96340.0,96339.0,0.00173]
[1733159633481,0.0017302,96343.0,96341.0,0.023]
[1733159633693,0.0017302,96343.0,96342.0,0.000986]
[1733159633902,0.0017302,96343.0,96342.0,0.00875135]
[1733159634113,0.2093212,96343.0,96342.0,0.00875135]
[1733159634536,0.21892392,96343.0,96342.0,0.00875135]
[1733159634713,0.21892392,96343.0,96342.0,0.000986]
[1733159635786,0.01133292,96343.0,96342.0,0.000986]
[1733159635996,0.0017302,96343.0,96342.0,0.000986]
[1733159636416,0.0017302,96343.0,96342.0,0.01375233]
[1733159636627,0.0017302,96343.0,96342.0,0.01675233]
[1733159638538,0.0017302,96343.0,96342.0,0.22434533]
[1733159639906,0.0017302,96343.0,96342.0,0.239579]
[1733159640125,0.0017302,96343.0,96342.0,0.24734691]
[1733159641198,0.01709684,96362.0,96342.0,0.24734691]
[1733159641199,0.00960693,96359.0,96348.0,0.2]
[1733159641411,0.207556,96360.0,96358.0,0.0009875]
[1733159641627,0.207556,96360.0,96359.0,0.00776791]
[1733159641833,0.21715974,96360.0,96358.0,0.0009875]
[1733159642050,0.20759,96344.0,96342.0,0.005]
[1733159642267,0.20759,96344.0,96343.0,0.00776675]
[1733159642490,0.32004089,96344.0,96343.0,0.00776675]
[1733159642702,0.207598,96340.0,96325.0,1.683364]
[1733159642911,0.21720368,96340.0,96325.0,1.683364]
[1733159643122,0.00960568,96340.0,96326.0,0.0018373]
[1733159643343,0.00960568,96340.0,96339.0,0.08413]
[1733159643549,0.0008651,96343.0,96342.0,0.2]
[1733159643765,0.0008651,96343.0,96342.0,0.33545152]
[1733159644040,0.0008651,96343.0,96342.0,0.33861476]
[1733159644249,0.00173,96362.0,96354.0,0.207566]
[1733159644498,0.00173,96362.0,96356.0,0.207563]
[1733159644741,0.00173,96362.0,96357.0,0.0096062]
[1733159644951,0.00173,96362.0,96358.0,0.00776955]
[1733159645130,0.00173,96362.0,96359.0,0.00776955]
[1733159645377,0.00173,96362.0,96360.0,0.00776955]
[1733159645608,0.00173,96362.0,96361.0,0.00776955]
[1733159646037,0.00173,96362.0,96361.0,0.23832155]
[1733159646472,0.00273,96362.0,96361.0,0.23931725]
[1733159646682,0.00173,96362.0,96361.0,0.23931725]
[1733159646897,0.00173,96362.0,96361.0,0.00876525]
[1733159647131,0.00173,96362.0,96361.0,0.0009957]
[1733159647132,0.00273,96362.0,96361.0,0.0009957]
[1733159648193,0.00173,96362.0,96361.0,0.0009957]
[1733159648421,0.00173,96362.0,96361.0,0.0029957]
[1733159648844,0.00173,96362.0,96361.0,0.0039957]
[1733159649052,0.00173,96362.0,96361.0,0.0089957]
[1733159650108,0.10457521,96362.0,96361.0,0.0089957]
[1733159650316,0.11418788,96362.0,96361.0,0.008]
[1733159650524,0.01134267,96362.0,96361.0,0.008]
[1733159650736,0.00173,96362.0,96361.0,0.008]
[1733159651141,0.00173,96362.0,96361.0,0.003]
[1733159651617,0.207569,96354.0,96350.0,0.0009906]
[1733159652910,0.207569,96354.0,96350.0,0.0049906]
[1733159653159,0.207569,96354.0,96350.0,0.0109906]
[1733159653839,0.415138,96354.0,96350.0,0.0109906]
[1733159654279,0.207569,96354.0,96350.0,0.0109906]
[1733159654489,0.20756,96358.0,96350.0,0.0109906]
[1733159654706,0.009618,96357.0,96350.0,0.0109906]
[1733159654926,0.00173,96362.0,96351.0,0.1248]
[1733159655148,0.01539068,96392.0,96365.0,0.2]
[1733159655366,0.0807,96412.0,96389.0,0.023]
[1733159655578,5.895e-05,96412.0,96406.0,0.207455]
[1733159655805,5.895e-05,96412.0,96409.0,0.023]
[1733159656022,5.895e-05,96412.0,96411.0,0.223]
[1733159656250,5.895e-05,96412.0,96411.0,0.67584521]
[1733159656482,0.0017312,96449.0,96431.0,0.2]
[1733159656704,0.0017312,96449.0,96439.0,0.630384]
[1733159656923,0.0017312,96449.0,96448.0,0.780365]
[1733159657138,0.0017312,96449.0,96448.0,0.32584521]
[1733159657356,0.2090942,96449.0,96433.0,0.023]
[1733159657566,0.207365,96448.0,96435.0,0.023]
[1733159657799,0.0017312,96449.0,96438.0,0.207387]
[1733159658015,0.0017312,96449.0,96436.0,0.10468032]
[1733159658016,0.0017312,96449.0,96444.0,0.207373]
[1733159658237,0.207348,96457.0,96445.0,0.00183497]
[1733159658453,0.207348,96456.0,96444.0,0.00183499]
[1733159658664,0.00058926,96448.0,96444.0,0.00183499]
[1733159659368,0.00058926,96448.0,96444.0,0.00383499]
[1733159659575,0.00058926,96448.0,96445.0,0.00319759]
[1733159659789,0.00058926,96448.0,96445.0,0.00503257]
[1733159660002,0.00058926,96448.0,96445.0,0.00319759]
[1733159660224,0.00058926,96448.0,96446.0,0.207369]
[1733159660432,0.00058926,96448.0,96447.0,0.00319753]
[1733159662192,0.00058926,96448.0,96447.0,0.00819753]
[1733159662617,0.00058926,96448.0,96447.0,0.01119753]
[1733159665027,0.00058926,96448.0,96447.0,0.03419753]
[1733159665919,0.00058926,96448.0,96447.0,0.02919753]
[1733159666128,0.00058926,96448.0,96447.0,0.02619753]
[1733159666335,0.00058926,96448.0,96447.0,0.03119753]
[1733159666540,0.00058926,96448.0,96447.0,0.03419753]
[1733159667038,0.00145346,96448.0,96447.0,0.03419753]
[1733159667459,0.00145346,96448.0,96447.0,0.02919753]
[1733159667675,0.00145346,96448.0,96447.0,0.03119753]
[1733159667897,0.00145346,96448.0,96447.0,0.13587772]
[1733159668132,0.00145346,96448.0,96447.0,0.83204274]
[1733159668335,0.00145346,96448.0,96447.0,0.83704274]
[1733159671540,0.00145346,96448.0,96447.0,1.04440974]
[1733159673429,0.00145346,96448.0,96447.0,0.83704274]
[1733159674067,0.00145346,96448.0,96447.0,0.71119753]
[1733159674683,0.00145346,96448.0,96447.0,0.91856453]
[1733159674756,0.00145346,96448.0,96447.0,0.71119753]
[1733159674962,0.00145346,96448.0,96447.0,1.04440974]
[1733159675377,0.00145346,96448.0,96447.0,0.71119753]
[1733159678647,0.00145346,96448.0,96447.0,0.91856453]
[1733159679024,0.00145346,96448.0,96447.0,0.94156453]
[1733159679392,0.00145346,96448.0,96447.0,0.94329253]
[1733159680219,1.0,96449.0,96447.0,0.94329253]
[1733159680420,1.0,96449.0,96447.0,0.94388179]
[1733159681042,1.0,96449.0,96447.0,0.93588179]
[1733159681428,1.0,96449.0,96447.0,0.94288179]
[1733159681834,1.0,96449.0,96447.0,0.93401679]
[1733159682048,0.53134521,96448.0,96447.0,0.59696479]
[1733159682315,0.53134521,96448.0,96379.0,0.0494]
[1733159682316,0.207492,96389.0,96376.0,0.2]
[1733159682515,0.207492,96389.0,96352.0,0.0494]
[1733159682516,0.207492,96389.0,96361.0,0.00183627]
[1733159682720,0.31033721,96389.0,96350.0,0.2017294]
[1733159682901,0.46033721,96389.0,96351.0,0.0018366]
[1733159683106,0.46033721,96389.0,96350.0,0.0017294]
[1733159683546,0.48519489,96389.0,96350.0,0.0017294]
[1733159683748,0.50211739,96389.0,96350.0,0.0017294]
[1733159683960,0.48681936,96389.0,96388.0,0.00190601]
[1733159684161,0.39927292,96389.0,96388.0,0.00190601]
[1733159684363,0.38397415,96389.0,96388.0,0.00190601]
[1733159684567,0.58201748,96389.0,96388.0,0.00190601]
[1733159684771,0.50212306,96389.0,96388.0,0.00190601]
[1733159685189,0.48520056,96389.0,96388.0,0.00190601]
[1733159685523,0.48520056,96389.0,96388.0,1e-08]
[1733159687007,0.47489686,96389.0,96388.0,1e-08]
[1733159687420,0.46987827,96389.0,96388.0,1e-08]
[1733159687628,0.46933721,96389.0,96388.0,0.00100001]
[1733159687831,0.47887879,96389.0,96388.0,0.00100001]
[1733159688090,0.47087879,96389.0,96388.0,1e-08]
[1733159688200,0.49514441,96389.0,96388.0,0.00100001]
[1733159688422,0.47987879,96389.0,96388.0,0.00100001]
[1733159688619,0.50853366,96389.0,96388.0,0.00100001]
[1733159689036,0.5261334,96389.0,96388.0,0.00100001]
[1733159689207,0.5291334,96389.0,96388.0,0.00100001]
[1733159690893,0.5291334,96389.0,96388.0,0.00273161]
[1733159691097,0.5299992,96389.0,96388.0,0.00273161]
[1733159691393,0.50034433,96389.0,96388.0,0.00273161]
[1733159691591,0.49080275,96389.0,96388.0,0.00273161]
[1733159692363,0.48780275,96389.0,96388.0,0.00273161]
[1733159692782,0.49080275,96389.0,96388.0,0.00273161]
[1733159692990,0.48180275,96389.0,96388.0,0.00173161]
[1733159693203,0.48180275,96389.0,96388.0,0.00273161]
[1733159693417,0.48880275,96389.0,96388.0,0.00273161]
[1733159693645,0.48180275,96389.0,96388.0,0.00173161]
[1733159693863,0.48480275,96389.0,96388.0,0.00173161]
[1733159694080,0.0068658,96389.0,96388.0,0.00173161]
[1733159694308,0.0038658,96389.0,96388.0,0.00173161]
[1733159694523,0.0048658,96389.0,96388.0,0.00173161]
[1733159694955,0.0038658,96389.0,96388.0,0.00173161]
[1733159695385,0.0048658,96389.0,96388.0,0.00173161]
[1733159695604,0.1548658,96389.0,96388.0,0.00173161]
[1733159695825,0.1538658,96389.0,96388.0,0.00173161]
[1733159696047,0.0018658,96389.0,96388.0,0.00173161]
[1733159696292,0.0038658,96389.0,96388.0,0.00173161]
[1733159696738,0.0018658,96389.0,96388.0,0.00173161]
[1733159696949,0.0048658,96389.0,96388.0,0.00173161]
[1733159697165,0.0018658,96389.0,96388.0,0.00173161]
[1733159697439,0.0028658,96389.0,96388.0,0.00173161]
[1733159697648,0.0038658,96389.0,96388.0,0.00173161]
[1733159698072,0.0028658,96389.0,96388.0,0.00173161]
[1733159698285,0.0008658,96389.0,96388.0,0.00173161]
[1733159699559,0.0018658,96389.0,96388.0,0.00173161]
[1733159701118,0.15,96430.0,96389.0,0.023]
[1733159701368,0.0479,96442.0,96412.0,0.0009926]
[1733159701369,0.207425,96421.0,96412.0,0.0009926]
[1733159701584,1.03,96449.0,96415.0,0.023]
[1733159701585,0.207409,96428.0,96415.0,0.023]
[1733159701801,0.01762929,96445.0,96415.0,0.023]
[1733159702024,1.0,96449.0,96427.0,0.2]
[1733159702239,1.0,96449.0,96432.0,0.2]
[1733159702451,1.0,96449.0,96445.0,0.207371]
[1733159702713,1.0,96449.0,96433.0,0.12768028]
[1733159702930,1.0,96449.0,96442.0,0.207377]
[1733159703574,1.0,96449.0,96441.0,0.20738]
[1733159703800,1.0,96449.0,96433.0,0.12584521]
[1733159703801,1.0,96449.0,96435.0,0.023]
[1733159704032,1.00058937,96449.0,96441.0,0.023]
[1733159704476,0.003,96445.0,96442.0,0.207378]
[1733159704689,0.003,96445.0,96442.0,0.211378]
[1733159704907,0.207372,96445.0,96442.0,0.004]
[1733159705136,0.207391,96436.0,96425.0,0.023]
[1733159705392,0.207384,96440.0,96425.0,0.023]
[1733159705616,0.207392,96436.0,96425.0,0.023]
[1733159705827,0.207392,96436.0,96420.0,0.207425]
[1733159706040,0.207399,96433.0,96417.0,0.20743]
[1733159706252,0.207383,96440.0,96418.0,0.10284521]
[1733159706475,0.207383,96440.0,96427.0,0.0009803]
[1733159706691,0.207397,96434.0,96427.0,0.0009803]
[1733159706909,0.207403,96431.0,96427.0,0.0009803]
[1733159707124,0.207393,96435.0,96408.0,0.2]
[1733159707338,0.207407,96429.0,96417.0,0.023]
[1733159707556,0.01732494,96446.0,96417.0,0.023]
[1733159707557,0.207421,96423.0,96417.0,0.023]
[1733159707769,0.207421,96423.0,96405.0,0.207457]
[1733159707770,0.207421,96422.0,96408.0,0.207449]
[1733159707982,0.207413,96426.0,96405.0,0.01721957]
[1733159707983,0.207415,96425.0,96405.0,0.01721957]
[1733159708188,0.01732494,96446.0,96409.0,0.0018356]
[1733159708397,0.01732494,96446.0,96410.0,0.00183557]
[1733159708398,0.207376,96443.0,96410.0,0.00183557]
[1733159708605,0.207376,96443.0,96398.0,0.207471]
[1733159708606,0.207447,96411.0,96398.0,0.207471]
[1733159708826,0.15,96441.0,96399.0,0.11237119]
[1733159709035,0.15,96448.0,96409.0,0.2]
[1733159709295,0.10284521,96447.0,96420.0,0.005]
[1733159709508,0.207419,96423.0,96420.0,0.005]
[1733159709928,0.20800837,96423.0,96420.0,0.005]
[1733159710381,0.41542837,96423.0,96420.0,0.005]
[1733159710593,0.00058937,96423.0,96405.0,0.207458]
[1733159710804,0.00058937,96423.0,96398.0,0.207471]
[1733159710805,0.207421,96422.0,96406.0,0.02483569]
[1733159711014,0.207431,96418.0,96406.0,0.023]
[1733159711227,0.207439,96414.0,96403.0,0.02483572]
[1733159711448,0.207439,96414.0,96410.0,0.0009931]
[1733159711897,0.414878,96414.0,96410.0,0.0009931]
[1733159712117,0.207443,96412.0,96410.0,0.0009931]
[1733159713442,0.207443,96412.0,96388.0,0.00356748]
[1733159713443,0.207486,96392.0,96388.0,0.0017316]
[1733159713873,0.414973,96392.0,96388.0,0.0017316]
[1733159714091,0.41178611,96392.0,96388.0,0.0017316]
[1733159714532,0.51463132,96392.0,96388.0,0.0017316]
[1733159714750,0.51463132,96392.0,96388.0,0.0047316]
[1733159714964,0.51522033,96392.0,96388.0,0.0047316]
[1733159715180,0.51522033,96392.0,96388.0,0.0077316]
[1733159715645,0.51522033,96392.0,96388.0,0.0047316]
[1733159715646,0.20749,96390.0,96388.0,0.0047316]
[1733159715886,0.10284521,96389.0,96388.0,0.0107316]
[1733159716791,0.10284521,96389.0,96388.0,0.0077316]
[1733159716792,0.1123941,96389.0,96388.0,0.0077316]
[1733159717013,0.1123941,96389.0,96388.0,0.0057316]
[1733159717242,0.1123941,96389.0,96388.0,0.0127316]
[1733159717462,0.1123941,96389.0,96388.0,0.0017316]
[1733159717888,0.1133941,96389.0,96388.0,0.0127316]
[1733159720307,0.2633941,96389.0,96388.0,0.0127316]
[1733159723366,0.2786809,96389.0,96388.0,0.0127316]
[1733159723581,0.2633941,96389.0,96388.0,0.0127316]
[1733159724225,0.28084223,96389.0,96388.0,0.0127316]
[1733159725764,0.16844813,96389.0,96388.0,0.0127316]
[1733159726027,0.151,96389.0,96388.0,0.0127316]
[1733159726677,0.001,96389.0,96388.0,0.0127316]
[1733159727099,0.151,96389.0,96388.0,0.0127316]
[1733159728858,0.001,96389.0,96388.0,0.0127316]
[1733159731756,0.12087068,96389.0,96388.0,0.0127316]
[1733159732056,0.25384521,96389.0,96388.0,0.0127316]
[1733159732339,0.26340995,96389.0,96388.0,0.0127316]
[1733159732596,0.2,96379.0,96351.0,0.00209193]
[1733159732840,0.207572,96352.0,96351.0,0.00209193]
[1733159733670,0.207562,96357.0,96351.0,0.00209193]